[Event "Titled Tuesday Blitz June 14 Late 2022"]
[White "Xiong, Jeffery"]
[Black "Dubov, Daniil"]
[WhiteFideId "2047640"]
[BlackFideId "24126055"]
[WhiteElo "2714"]
[BlackElo "2791"]
[Result "1/2-1/2"]
[Round "10"]
[TimeControl "180+1"]
[Date "2022.06.14"]
[WhiteClock "0:00:02"]
[BlackClock "0:00:07"]

1. d4 {[%clk 0:03:00]}  Nf6 {[%clk 0:02:59]} 2. Nf3 {[%clk 0:03:01]}  e6 {[%clk 0:03:00]} 3. Bf4 {[%clk 0:03:00]}  d5 {[%clk 0:02:58]} 4. e3 {[%clk 0:03:01]}  c5 {[%clk 0:02:56]} 5. Nbd2 {[%clk 0:03:00]}  Qb6 {[%clk 0:02:55]} 6. Rb1 {[%clk 0:02:56]}  Bd6 {[%clk 0:02:55]} 7. dxc5 {[%clk 0:02:53]}  Qxc5 {[%clk 0:02:54]} 8. Bd3 {[%clk 0:02:54]}  O-O {[%clk 0:02:51]} 9. O-O {[%clk 0:02:54]}  Nbd7 {[%clk 0:02:47]} 10. b4 {[%clk 0:02:55]}  Qc7 {[%clk 0:02:47]} 11. Bxd6 {[%clk 0:02:55]}  Qxd6 {[%clk 0:02:48]} 12. c4 {[%clk 0:02:56]}  b6 {[%clk 0:02:41]} 13. cxd5 {[%clk 0:02:56]}  Nxd5 {[%clk 0:02:40]} 14. Qb3 {[%clk 0:02:50]}  Bb7 {[%clk 0:02:37]} 15. Nc4 {[%clk 0:02:26]}  Qe7 {[%clk 0:02:36]} 16. a3 {[%clk 0:02:24]}  Rac8 {[%clk 0:02:33]} 17. Rbc1 {[%clk 0:02:22]}  Rc7 {[%clk 0:02:30]} 18. Nd4 {[%clk 0:02:20]}  a6 {[%clk 0:02:22]} 19. Nd2 {[%clk 0:02:17]}  Rfc8 {[%clk 0:02:20]} 20. Rxc7 {[%clk 0:01:54]}  Rxc7 {[%clk 0:02:21]} 21. Qb2 {[%clk 0:01:55]}  Ne5 {[%clk 0:02:00]} 22. Be2 {[%clk 0:01:54]}  Nc3 {[%clk 0:01:54]} 23. N2f3 {[%clk 0:00:51]}  Nxe2+ {[%clk 0:01:34]} 24. Qxe2 {[%clk 0:00:52]}  Nc4 {[%clk 0:01:34]} 25. Qd3 {[%clk 0:00:47]}  g6 {[%clk 0:01:31]} 26. Nd2 {[%clk 0:00:40]}  Nd6 {[%clk 0:01:22]} 27. Rd1 {[%clk 0:00:33]}  e5 {[%clk 0:01:17]} 28. Ne2 {[%clk 0:00:33]}  Kg7 {[%clk 0:00:48]} 29. h3 {[%clk 0:00:33]}  Qe6 {[%clk 0:00:45]} 30. Nc3 {[%clk 0:00:30]}  Nf5 {[%clk 0:00:35]} 31. Nde4 {[%clk 0:00:25]}  Qc4 {[%clk 0:00:31]} 32. g4 {[%clk 0:00:19]}  Nh4 {[%clk 0:00:28]} 33. Kh2 {[%clk 0:00:09]}  Qe6 {[%clk 0:00:14]} 34. Qd6 {[%clk 0:00:09]}  Qxd6 {[%clk 0:00:13]} 35. Rxd6 {[%clk 0:00:10]}  f5 {[%clk 0:00:13]} 36. gxf5 {[%clk 0:00:11]}  gxf5 {[%clk 0:00:13]} 37. Nd2 {[%clk 0:00:08]}  Rxc3 {[%clk 0:00:12]} 38. Rd7+ {[%clk 0:00:08]}  Kg6 {[%clk 0:00:08]} 39. Rxb7 {[%clk 0:00:09]}  Rc2 {[%clk 0:00:08]} 40. Kg3 {[%clk 0:00:07]}  Rxd2 {[%clk 0:00:07]} 41. Kxh4 {[%clk 0:00:07]}  Rd6 {[%clk 0:00:07]} 42. Ra7 {[%clk 0:00:05]}  b5 {[%clk 0:00:07]} 43. Kg3 {[%clk 0:00:04]}  Rc6 {[%clk 0:00:06]} 44. Rb7 {[%clk 0:00:04]}  Rd6 {[%clk 0:00:06]} 45. Kf3 {[%clk 0:00:04]}  h6 {[%clk 0:00:05]} 46. Rc7 {[%clk 0:00:04]}  Kf6 {[%clk 0:00:05]} 47. Kg3 {[%clk 0:00:05]}  Kg6 {[%clk 0:00:06]} 48. Kh4 {[%clk 0:00:05]}  Re6 {[%clk 0:00:04]} 49. Rc5 {[%clk 0:00:05]}  e4 {[%clk 0:00:03]} 50. Kg3 {[%clk 0:00:06]}  Rd6 {[%clk 0:00:02]} 51. Kf4 {[%clk 0:00:06]}  Rd2 {[%clk 0:00:03]} 52. Rc6+ {[%clk 0:00:07]}  Kh5 {[%clk 0:00:03]} 53. Kxf5 {[%clk 0:00:08]}  Rxf2+ {[%clk 0:00:03]} 54. Kxe4 {[%clk 0:00:08]}  Rh2 {[%clk 0:00:04]} 55. Rxa6 {[%clk 0:00:09]}  Rxh3 {[%clk 0:00:04]} 56. Ra5 {[%clk 0:00:10]}  Kg4 {[%clk 0:00:04]} 57. Rxb5 {[%clk 0:00:10]}  h5 {[%clk 0:00:04]} 58. Rb8 {[%clk 0:00:08]}  Rh1 {[%clk 0:00:05]} 59. Rg8+ {[%clk 0:00:07]}  Kh3 {[%clk 0:00:06]} 60. b5 {[%clk 0:00:07]}  Rb1 {[%clk 0:00:06]} 61. Rg5 {[%clk 0:00:07]}  h4 {[%clk 0:00:05]} 62. Kf3 {[%clk 0:00:07]}  Kh2 {[%clk 0:00:06]} 63. a4 {[%clk 0:00:07]}  h3 {[%clk 0:00:06]} 64. a5 {[%clk 0:00:07]}  Kh1 {[%clk 0:00:06]} 65. a6 {[%clk 0:00:07]}  h2 {[%clk 0:00:06]} 66. a7 {[%clk 0:00:02]}  Rf1+ {[%clk 0:00:05]} 67. Ke4 {[%clk 0:00:03]}  Rf4+ {[%clk 0:00:05]} 68. Ke5 {[%clk 0:00:03]}  Re4+ {[%clk 0:00:04]} 69. Kf6 {[%clk 0:00:04]}  Re6+ {[%clk 0:00:05]} 70. Kf5 {[%clk 0:00:04]}  Re5+ {[%clk 0:00:04]} 71. Kg6 {[%clk 0:00:03]}  Re6+ {[%clk 0:00:04]} 72. Kh7 {[%clk 0:00:03]}  Rh6+ {[%clk 0:00:03]} 73. Kg7 {[%clk 0:00:01]}  Rg6+ {[%clk 0:00:03]} 74. Kf7 {[%clk 0:00:02]}  Rf6+ {[%clk 0:00:03]} 75. Ke7 {[%clk 0:00:03]}  Re6+ {[%clk 0:00:04]} 76. Kd7 {[%clk 0:00:03]}  Rd6+ {[%clk 0:00:04]} 77. Kc7 {[%clk 0:00:04]}  Rc6+ {[%clk 0:00:04]} 78. Kd8 {[%clk 0:00:02]}  Rd6+ {[%clk 0:00:05]} 79. Ke7 {[%clk 0:00:03]}  Re6+ {[%clk 0:00:05]} 80. Kf7 {[%clk 0:00:04]}  Rf6+ {[%clk 0:00:06]} 81. Ke8 {[%clk 0:00:02]}  Re6+ {[%clk 0:00:06]} 82. Kd8 {[%clk 0:00:03]}  Rd6+ {[%clk 0:00:06]} 83. Kc7 {[%clk 0:00:02]}  Rc6+ {[%clk 0:00:07]} 84. Kb7 {[%clk 0:00:02]}  Rb6+ {[%clk 0:00:07]} 85. Kxb6 {[%clk 0:00:02]} 1/2-1/2


[Site "https://www.chess.com"]

[Event "Titled Tuesday Blitz June 14 Late 2022"]
[White "Zhurbinsky, David"]
[Black "Roman, Rodrigo"]
[WhiteFideId "2072904"]
[BlackFideId "3701220"]
[WhiteElo "2574"]
[BlackElo "2001"]
[Result "1-0"]
[Round "10"]
[TimeControl "180+1"]
[Date "2022.06.15"]
[WhiteClock "0:00:03"]
[BlackClock "0:00:07"]

1. e4 {[%clk 0:03:00]}  e6 {[%clk 0:02:59]} 2. d4 {[%clk 0:03:00]}  d5 {[%clk 0:03:00]} 3. Nc3 {[%clk 0:03:01]}  dxe4 {[%clk 0:02:59]} 4. Nxe4 {[%clk 0:03:02]}  Nd7 {[%clk 0:02:59]} 5. Nf3 {[%clk 0:03:02]}  Ngf6 {[%clk 0:02:59]} 6. Nxf6+ {[%clk 0:03:02]}  Nxf6 {[%clk 0:02:59]} 7. Bd3 {[%clk 0:03:03]}  Be7 {[%clk 0:02:59]} 8. Bg5 {[%clk 0:03:03]}  O-O {[%clk 0:02:59]} 9. Qd2 {[%clk 0:03:03]}  b6 {[%clk 0:02:56]} 10. O-O-O {[%clk 0:02:57]}  Bb7 {[%clk 0:02:56]} 11. Ne5 {[%clk 0:02:47]}  Rc8 {[%clk 0:02:34]} 12. Qf4 {[%clk 0:02:31]}  Nd5 {[%clk 0:02:32]} 13. Bxe7 {[%clk 0:02:05]}  Nxf4 {[%clk 0:02:30]} 14. Bxd8 {[%clk 0:02:05]}  Nxd3+ {[%clk 0:02:31]} 15. Rxd3 {[%clk 0:02:01]}  Rfxd8 {[%clk 0:02:30]} 16. f3 {[%clk 0:01:58]}  c5 {[%clk 0:02:28]} 17. dxc5 {[%clk 0:01:56]}  bxc5 {[%clk 0:02:20]} 18. Rhd1 {[%clk 0:01:54]}  Rd5 {[%clk 0:02:01]} 19. c4 {[%clk 0:01:49]}  Rxd3 {[%clk 0:02:01]} 20. Rxd3 {[%clk 0:01:50]}  f6 {[%clk 0:01:56]} 21. Ng4 {[%clk 0:01:30]}  Rc7 {[%clk 0:01:50]} 22. Kd2 {[%clk 0:01:17]}  Kf7 {[%clk 0:01:50]} 23. Kc3 {[%clk 0:01:15]}  Ke7 {[%clk 0:01:49]} 24. Nf2 {[%clk 0:01:08]}  a5 {[%clk 0:01:45]} 25. Kc2 {[%clk 0:01:05]}  Bc6 {[%clk 0:01:28]} 26. Ra3 {[%clk 0:00:59]}  a4 {[%clk 0:01:26]} 27. Nd3 {[%clk 0:00:55]}  Bd7 {[%clk 0:01:23]} 28. Nf4 {[%clk 0:00:48]}  g5 {[%clk 0:01:18]} 29. Ne2 {[%clk 0:00:43]}  h5 {[%clk 0:01:02]} 30. Nc3 {[%clk 0:00:43]}  Ra7 {[%clk 0:01:01]} 31. Ne4 {[%clk 0:00:43]}  Rc7 {[%clk 0:00:56]} 32. Nc3 {[%clk 0:00:40]}  Ra7 {[%clk 0:00:56]} 33. Kd2 {[%clk 0:00:34]}  f5 {[%clk 0:00:52]} 34. b3 {[%clk 0:00:33]}  Bc6 {[%clk 0:00:39]} 35. bxa4 {[%clk 0:00:24]}  g4 {[%clk 0:00:38]} 36. Nb5 {[%clk 0:00:20]}  Ra5 {[%clk 0:00:29]} 37. Ke3 {[%clk 0:00:10]}  Kf6 {[%clk 0:00:25]} 38. Nc3 {[%clk 0:00:08]}  h4 {[%clk 0:00:15]} 39. Rb3 {[%clk 0:00:07]}  Ke5 {[%clk 0:00:13]} 40. f4+ {[%clk 0:00:07]}  Kf6 {[%clk 0:00:12]} 41. g3 {[%clk 0:00:07]}  hxg3 {[%clk 0:00:12]} 42. hxg3 {[%clk 0:00:08]}  Ra7 {[%clk 0:00:11]} 43. Kf2 {[%clk 0:00:03]}  Rh7 {[%clk 0:00:11]} 44. Rb6 {[%clk 0:00:01]}  Rh2+ {[%clk 0:00:09]} 45. Ke3 {[%clk 0:00:02]}  Bf3 {[%clk 0:00:09]} 46. a5 {[%clk 0:00:02]}  Rc2 {[%clk 0:00:08]} 47. Nb5 {[%clk 0:00:02]}  Re2+ {[%clk 0:00:08]} 48. Kd3 {[%clk 0:00:02]}  Rxa2 {[%clk 0:00:08]} 49. a6 {[%clk 0:00:02]}  Be2+ {[%clk 0:00:08]} 50. Ke3 {[%clk 0:00:02]}  Bxc4 {[%clk 0:00:08]} 51. Nc3 {[%clk 0:00:02]}  Bxa6 {[%clk 0:00:07]} 52. Nxa2 {[%clk 0:00:02]}  Bc4 {[%clk 0:00:07]} 53. Nc3 {[%clk 0:00:03]}  Bd5 {[%clk 0:00:07]} 54. Nxd5+ {[%clk 0:00:03]} 1-0


[Site "https://www.chess.com"]

[Event "Titled Tuesday Blitz June 14 Late 2022"]
[White "Andreikin, Dmitry"]
[Black "Nakamura, Hikaru"]
[WhiteFideId "4158814"]
[BlackFideId "2016192"]
[WhiteElo "2736"]
[BlackElo "2850"]
[Result "1-0"]
[Round "11"]
[TimeControl "180+1"]
[Date "2022.06.14"]
[WhiteClock "0:00:10"]
[BlackClock "0:00:22"]

1. d4 {[%clk 0:03:00]}  Nf6 {[%clk 0:02:59]} 2. c4 {[%clk 0:03:01]}  e6 {[%clk 0:03:00]} 3. Nc3 {[%clk 0:02:59]}  Bb4 {[%clk 0:03:00]} 4. Nf3 {[%clk 0:02:59]}  O-O {[%clk 0:03:00]} 5. Bg5 {[%clk 0:02:59]}  c5 {[%clk 0:03:00]} 6. Rc1 {[%clk 0:02:58]}  h6 {[%clk 0:03:00]} 7. Bh4 {[%clk 0:02:58]}  cxd4 {[%clk 0:03:01]} 8. Nxd4 {[%clk 0:02:59]}  d5 {[%clk 0:03:01]} 9. cxd5 {[%clk 0:02:59]}  Bxc3+ {[%clk 0:03:02]} 10. Rxc3 {[%clk 0:02:58]}  g5 {[%clk 0:03:00]} 11. Bg3 {[%clk 0:02:53]}  Qxd5 {[%clk 0:03:00]} 12. e3 {[%clk 0:02:29]}  e5 {[%clk 0:02:52]} 13. Bc4 {[%clk 0:02:13]}  Qxg2 {[%clk 0:02:34]} 14. Qf3 {[%clk 0:02:13]}  Qxf3 {[%clk 0:02:34]} 15. Nxf3 {[%clk 0:02:14]}  Ne4 {[%clk 0:02:34]} 16. Rc1 {[%clk 0:02:10]}  Nc6 {[%clk 0:02:28]} 17. Bd5 {[%clk 0:02:07]}  Nxg3 {[%clk 0:02:26]} 18. hxg3 {[%clk 0:02:07]}  Nb4 {[%clk 0:02:24]} 19. Be4 {[%clk 0:02:04]}  Nxa2 {[%clk 0:01:38]} 20. Rc7 {[%clk 0:01:57]}  Kg7 {[%clk 0:01:38]} 21. Nxe5 {[%clk 0:01:25]}  Be6 {[%clk 0:01:37]} 22. Rxb7 {[%clk 0:01:09]}  Rab8 {[%clk 0:01:31]} 23. Rxa7 {[%clk 0:01:06]}  Rxb2 {[%clk 0:01:30]} 24. O-O {[%clk 0:00:58]}  Nc3 {[%clk 0:01:28]} 25. Bf3 {[%clk 0:00:55]}  Rb5 {[%clk 0:01:07]} 26. Nc6 {[%clk 0:00:37]}  Rc5 {[%clk 0:01:02]} 27. Nd4 {[%clk 0:00:36]}  Bc8 {[%clk 0:01:02]} 28. Rc1 {[%clk 0:00:32]}  Ne4 {[%clk 0:00:55]} 29. Rxc5 {[%clk 0:00:31]}  Nxc5 {[%clk 0:00:56]} 30. Bd5 {[%clk 0:00:30]}  Kf6 {[%clk 0:00:45]} 31. f4 {[%clk 0:00:22]}  Ne6 {[%clk 0:00:41]} 32. Nf3 {[%clk 0:00:20]}  Nd8 {[%clk 0:00:30]} 33. Ne5 {[%clk 0:00:18]}  Be6 {[%clk 0:00:26]} 34. Bxe6 {[%clk 0:00:17]}  Kxe6 {[%clk 0:00:27]} 35. Ra6+ {[%clk 0:00:16]}  Kf5 {[%clk 0:00:27]} 36. Kf2 {[%clk 0:00:12]}  gxf4 {[%clk 0:00:26]} 37. gxf4 {[%clk 0:00:11]}  f6 {[%clk 0:00:22]} 38. Kf3 {[%clk 0:00:10]} 1-0


[Site "https://www.chess.com"]

[Event "Titled Tuesday Blitz June 14 Late 2022"]
[White "Antonova, Nadezhda"]
[Black "Sanchez Alarcon, Juan"]
[WhiteFideId "14700182"]
[BlackFideId "3401332"]
[WhiteElo "1746"]
[BlackElo "2164"]
[Result "0-1"]
[Round "11"]
[TimeControl "180+1"]
[Date "2022.06.15"]
[WhiteClock "0:00:02"]
[BlackClock "0:00:56"]

1. Nf3 {[%clk 0:02:56]}  Nf6 {[%clk 0:02:58]} 2. b3 {[%clk 0:02:56]}  g6 {[%clk 0:02:57]} 3. Bb2 {[%clk 0:02:56]}  Bg7 {[%clk 0:02:57]} 4. g3 {[%clk 0:02:57]}  d6 {[%clk 0:02:57]} 5. d4 {[%clk 0:02:57]}  Nbd7 {[%clk 0:02:55]} 6. Bg2 {[%clk 0:02:57]}  O-O {[%clk 0:02:55]} 7. O-O {[%clk 0:02:58]}  c6 {[%clk 0:02:54]} 8. Nbd2 {[%clk 0:02:56]}  Re8 {[%clk 0:02:54]} 9. Re1 {[%clk 0:02:56]}  e5 {[%clk 0:02:54]} 10. e4 {[%clk 0:02:57]}  Qc7 {[%clk 0:02:49]} 11. dxe5 {[%clk 0:02:57]}  dxe5 {[%clk 0:02:47]} 12. Nc4 {[%clk 0:02:57]}  b5 {[%clk 0:02:44]} 13. Qd6 {[%clk 0:02:56]}  Qxd6 {[%clk 0:02:31]} 14. Nxd6 {[%clk 0:02:56]}  Re6 {[%clk 0:02:30]} 15. Rad1 {[%clk 0:02:54]}  h6 {[%clk 0:02:26]} 16. Nxc8 {[%clk 0:02:32]}  Rxc8 {[%clk 0:02:25]} 17. Bh3 {[%clk 0:02:32]}  Re7 {[%clk 0:02:21]} 18. Ba3 {[%clk 0:02:32]}  c5 {[%clk 0:02:18]} 19. Rd6 {[%clk 0:02:17]}  b4 {[%clk 0:02:13]} 20. Bb2 {[%clk 0:02:17]}  Rce8 {[%clk 0:02:13]} 21. Red1 {[%clk 0:02:15]}  Nb6 {[%clk 0:02:13]} 22. Nd2 {[%clk 0:02:05]}  Rc7 {[%clk 0:02:10]} 23. f3 {[%clk 0:01:36]}  c4 {[%clk 0:01:57]} 24. bxc4 {[%clk 0:01:28]}  Nxc4 {[%clk 0:01:56]} 25. Nxc4 {[%clk 0:01:28]}  Rxc4 {[%clk 0:01:57]} 26. R1d2 {[%clk 0:01:11]}  Re7 {[%clk 0:01:56]} 27. Bf1 {[%clk 0:00:54]}  Rcc7 {[%clk 0:01:55]} 28. Rd8+ {[%clk 0:00:51]}  Kh7 {[%clk 0:01:53]} 29. Bd3 {[%clk 0:00:33]}  Nd7 {[%clk 0:01:51]} 30. Kf2 {[%clk 0:00:20]}  Nc5 {[%clk 0:01:50]} 31. Ke2 {[%clk 0:00:19]}  Ne6 {[%clk 0:01:39]} 32. Rd5 {[%clk 0:00:18]}  Nd4+ {[%clk 0:01:37]} 33. Bxd4 {[%clk 0:00:15]}  exd4 {[%clk 0:01:37]} 34. Bb5 {[%clk 0:00:09]}  f5 {[%clk 0:01:27]} 35. Bd3 {[%clk 0:00:08]}  fxe4 {[%clk 0:01:24]} 36. Bxe4 {[%clk 0:00:08]}  Rc3 {[%clk 0:01:17]} 37. Kf2 {[%clk 0:00:08]}  Ra3 {[%clk 0:01:16]} 38. Rd6 {[%clk 0:00:08]}  Rxa2 {[%clk 0:01:12]} 39. Bxg6+ {[%clk 0:00:06]}  Kg8 {[%clk 0:01:11]} 40. Rd8+ {[%clk 0:00:04]}  Bf8 {[%clk 0:01:11]} 41. R2xd4 {[%clk 0:00:03]}  Kg7 {[%clk 0:01:12]} 42. Bd3 {[%clk 0:00:02]}  a5 {[%clk 0:01:10]} 43. Rg4+ {[%clk 0:00:02]}  Kf7 {[%clk 0:01:05]} 44. Rf4+ {[%clk 0:00:03]}  Kg7 {[%clk 0:01:03]} 45. Rfxf8 {[%clk 0:00:03]}  b3 {[%clk 0:01:02]} 46. Rg8+ {[%clk 0:00:03]}  Kf7 {[%clk 0:01:02]} 47. Rdf8+ {[%clk 0:00:03]}  Ke6 {[%clk 0:01:02]} 48. Bc4+ {[%clk 0:00:03]}  Kd6 {[%clk 0:01:02]} 49. Bxb3 {[%clk 0:00:03]}  Rb2 {[%clk 0:01:02]} 50. Kg2 {[%clk 0:00:03]}  Ra7 {[%clk 0:01:00]} 51. Rd8+ {[%clk 0:00:03]}  Kc7 {[%clk 0:00:59]} 52. Rc8+ {[%clk 0:00:03]}  Kb6 {[%clk 0:00:59]} 53. Rb8+ {[%clk 0:00:03]}  Kc5 {[%clk 0:00:59]} 54. Rgc8+ {[%clk 0:00:02]}  Kd4 {[%clk 0:00:59]} 55. Rc4+ {[%clk 0:00:02]}  Ke3 {[%clk 0:00:58]} 56. Kh3 {[%clk 0:00:02]}  a4 {[%clk 0:00:56]} 0-1


[Site "https://www.chess.com"]

[Event "Titled Tuesday Blitz June 14 Late 2022"]
[White "Babazada, Khazar"]
[Black "Bortnyk, Olexandr"]
[WhiteFideId "13413554"]
[BlackFideId "14120828"]
[WhiteElo "2406"]
[BlackElo "2723"]
[Result "0-1"]
[Round "11"]
[TimeControl "180+1"]
[Date "2022.06.14"]
[WhiteClock "0:00:02"]
[BlackClock "0:00:07"]

1. e4 {[%clk 0:03:00]}  d6 {[%clk 0:02:59]} 2. d4 {[%clk 0:03:01]}  Nf6 {[%clk 0:02:59]} 3. Nc3 {[%clk 0:03:01]}  Nbd7 {[%clk 0:03:00]} 4. Nf3 {[%clk 0:03:00]}  e5 {[%clk 0:03:00]} 5. Bc4 {[%clk 0:02:59]}  Be7 {[%clk 0:03:01]} 6. O-O {[%clk 0:02:57]}  c6 {[%clk 0:03:01]} 7. a4 {[%clk 0:02:54]}  h6 {[%clk 0:03:00]} 8. h3 {[%clk 0:02:55]}  Qc7 {[%clk 0:03:00]} 9. a5 {[%clk 0:02:55]}  g5 {[%clk 0:03:00]} 10. dxe5 {[%clk 0:02:52]}  dxe5 {[%clk 0:03:00]} 11. Be3 {[%clk 0:02:46]}  g4 {[%clk 0:02:55]} 12. hxg4 {[%clk 0:02:27]}  Nxg4 {[%clk 0:02:56]} 13. Ng5 {[%clk 0:02:28]}  hxg5 {[%clk 0:01:54]} 14. Qxg4 {[%clk 0:02:27]}  Nf6 {[%clk 0:01:55]} 15. Qe2 {[%clk 0:02:13]}  g4 {[%clk 0:01:36]} 16. Rfd1 {[%clk 0:01:28]}  g3 {[%clk 0:01:33]} 17. f3 {[%clk 0:01:23]}  Nh5 {[%clk 0:01:23]} 18. a6 {[%clk 0:01:22]}  b5 {[%clk 0:01:19]} 19. Bxb5 {[%clk 0:00:57]}  cxb5 {[%clk 0:01:20]} 20. Nd5 {[%clk 0:00:57]}  Qc6 {[%clk 0:01:04]} 21. Nxe7 {[%clk 0:00:45]}  Kxe7 {[%clk 0:01:05]} 22. Rd5 {[%clk 0:00:46]}  f6 {[%clk 0:00:44]} 23. Rad1 {[%clk 0:00:46]}  Kf7 {[%clk 0:00:39]} 24. Rd6 {[%clk 0:00:42]}  Qc4 {[%clk 0:00:39]} 25. Qd2 {[%clk 0:00:38]}  Ng7 {[%clk 0:00:37]} 26. Rd5 {[%clk 0:00:22]}  Ne6 {[%clk 0:00:24]} 27. b3 {[%clk 0:00:23]}  Qc6 {[%clk 0:00:22]} 28. f4 {[%clk 0:00:14]}  exf4 {[%clk 0:00:13]} 29. Bxf4 {[%clk 0:00:14]}  Nxf4 {[%clk 0:00:14]} 30. Qxf4 {[%clk 0:00:13]}  Qb6+ {[%clk 0:00:12]} 31. R1d4 {[%clk 0:00:11]}  Be6 {[%clk 0:00:11]} 32. Rd6 {[%clk 0:00:11]}  Qa5 {[%clk 0:00:08]} 33. Qxg3 {[%clk 0:00:04]}  Rag8 {[%clk 0:00:07]} 34. Qf4 {[%clk 0:00:02]}  Qe1+ {[%clk 0:00:07]} 0-1


[Site "https://www.chess.com"]

[Event "Titled Tuesday Blitz June 14 Late 2022"]
[White "Bernadskiy, Vitaliy"]
[Black "Xiong, Jeffery"]
[WhiteFideId "14100371"]
[BlackFideId "2047640"]
[WhiteElo "2473"]
[BlackElo "2714"]
[Result "1-0"]
[Round "11"]
[TimeControl "180+1"]
[Date "2022.06.14"]
[WhiteClock "0:00:10"]
[BlackClock "0:00:04"]

1. b3 {[%clk 0:03:00]}  d5 {[%clk 0:02:58]} 2. Bb2 {[%clk 0:03:01]}  Bf5 {[%clk 0:02:59]} 3. e3 {[%clk 0:03:00]}  e6 {[%clk 0:03:00]} 4. Nf3 {[%clk 0:02:59]}  Nf6 {[%clk 0:03:00]} 5. Be2 {[%clk 0:02:58]}  h6 {[%clk 0:03:00]} 6. O-O {[%clk 0:02:58]}  Be7 {[%clk 0:03:00]} 7. c4 {[%clk 0:02:56]}  O-O {[%clk 0:03:01]} 8. Nc3 {[%clk 0:02:55]}  c6 {[%clk 0:02:55]} 9. Rc1 {[%clk 0:02:53]}  Nbd7 {[%clk 0:02:55]} 10. d4 {[%clk 0:02:49]}  Ne4 {[%clk 0:02:55]} 11. Bd3 {[%clk 0:02:44]}  Nxc3 {[%clk 0:02:51]} 12. Bxc3 {[%clk 0:02:44]}  Bxd3 {[%clk 0:02:49]} 13. Qxd3 {[%clk 0:02:45]}  f5 {[%clk 0:02:50]} 14. b4 {[%clk 0:02:39]}  Nf6 {[%clk 0:02:37]} 15. Ne5 {[%clk 0:02:29]}  Ne4 {[%clk 0:02:36]} 16. Be1 {[%clk 0:02:25]}  Bf6 {[%clk 0:02:31]} 17. Ng6 {[%clk 0:02:18]}  Re8 {[%clk 0:02:25]} 18. Nf4 {[%clk 0:02:18]}  Nd6 {[%clk 0:02:22]} 19. c5 {[%clk 0:02:15]}  Nc4 {[%clk 0:02:22]} 20. Qb3 {[%clk 0:02:11]}  e5 {[%clk 0:02:18]} 21. dxe5 {[%clk 0:02:10]}  Bxe5 {[%clk 0:02:19]} 22. Qd3 {[%clk 0:02:02]}  Qg5 {[%clk 0:02:15]} 23. g3 {[%clk 0:01:52]}  Rad8 {[%clk 0:02:09]} 24. Rxc4 {[%clk 0:01:45]}  dxc4 {[%clk 0:02:08]} 25. Qxc4+ {[%clk 0:01:46]}  Kh7 {[%clk 0:02:01]} 26. Ne6 {[%clk 0:01:46]}  Qf6 {[%clk 0:02:02]} 27. Nxd8 {[%clk 0:01:45]}  Rxd8 {[%clk 0:02:03]} 28. b5 {[%clk 0:01:43]}  cxb5 {[%clk 0:01:48]} 29. Qxb5 {[%clk 0:01:42]}  Qc6 {[%clk 0:01:49]} 30. Qb1 {[%clk 0:01:36]}  Qe4 {[%clk 0:01:34]} 31. Qxe4 {[%clk 0:01:30]}  fxe4 {[%clk 0:01:35]} 32. Bb4 {[%clk 0:01:29]}  Kg6 {[%clk 0:01:35]} 33. Rb1 {[%clk 0:01:29]}  Kf5 {[%clk 0:01:35]} 34. Kg2 {[%clk 0:01:24]}  Rd5 {[%clk 0:01:32]} 35. Rb3 {[%clk 0:01:20]}  Rd1 {[%clk 0:01:21]} 36. Ba5 {[%clk 0:01:11]}  Rd7 {[%clk 0:01:21]} 37. Rb5 {[%clk 0:00:58]}  Ke6 {[%clk 0:01:19]} 38. f4 {[%clk 0:00:52]}  Bf6 {[%clk 0:00:55]} 39. g4 {[%clk 0:00:51]}  Kd5 {[%clk 0:00:55]} 40. Rb4 {[%clk 0:00:47]}  Bc3 {[%clk 0:00:26]} 41. Ra4 {[%clk 0:00:44]}  Bf6 {[%clk 0:00:16]} 42. Kg3 {[%clk 0:00:44]}  g5 {[%clk 0:00:06]} 43. f5 {[%clk 0:00:43]}  Be5+ {[%clk 0:00:06]} 44. Kg2 {[%clk 0:00:43]}  Re7 {[%clk 0:00:03]} 45. Be1 {[%clk 0:00:42]}  Bb8 {[%clk 0:00:02]} 46. Rd4+ {[%clk 0:00:39]}  Kc6 {[%clk 0:00:02]} 47. Bg3 {[%clk 0:00:29]}  Bxg3 {[%clk 0:00:02]} 48. Kxg3 {[%clk 0:00:30]}  Kxc5 {[%clk 0:00:03]} 49. Rd8 {[%clk 0:00:26]}  b5 {[%clk 0:00:04]} 50. Rh8 {[%clk 0:00:23]}  a5 {[%clk 0:00:04]} 51. Rxh6 {[%clk 0:00:23]}  a4 {[%clk 0:00:05]} 52. h4 {[%clk 0:00:20]}  gxh4+ {[%clk 0:00:06]} 53. Kf4 {[%clk 0:00:19]}  b4 {[%clk 0:00:04]} 54. f6 {[%clk 0:00:19]}  Rb7 {[%clk 0:00:04]} 55. Rxh4 {[%clk 0:00:14]}  Kd5 {[%clk 0:00:04]} 56. Kf5 {[%clk 0:00:13]}  Kd6 {[%clk 0:00:01]} 57. Kg6 {[%clk 0:00:11]}  Ke6 {[%clk 0:00:01]} 58. g5 {[%clk 0:00:11]}  Ke5 {[%clk 0:00:01]} 59. f7 {[%clk 0:00:10]}  Rb8 {[%clk 0:00:02]} 60. Kg7 {[%clk 0:00:10]}  b3 {[%clk 0:00:03]} 61. axb3 {[%clk 0:00:10]}  axb3 {[%clk 0:00:04]} 62. Rh1 {[%clk 0:00:10]}  Kf5 {[%clk 0:00:04]} 63. g6 {[%clk 0:00:10]} 1-0


[Site "https://www.chess.com"]

[Event "Titled Tuesday Blitz June 14 Late 2022"]
[White "Bongo Akanga Ndjila, Barthelemy"]
[Black "Kohler, Aran"]
[WhiteFideId "10609431"]
[BlackFideId "1002856"]
[WhiteElo "1768"]
[BlackElo "2235"]
[Result "0-1"]
[Round "11"]
[TimeControl "180+1"]
[Date "2022.06.15"]
[WhiteClock "0:00:01"]
[BlackClock "0:00:17"]

1. d4 {[%clk 0:03:00]}  d5 {[%clk 0:02:54]} 2. c4 {[%clk 0:03:00]}  c6 {[%clk 0:02:54]} 3. Nc3 {[%clk 0:02:59]}  Nf6 {[%clk 0:02:55]} 4. Nf3 {[%clk 0:02:59]}  e6 {[%clk 0:02:55]} 5. e3 {[%clk 0:02:58]}  Nbd7 {[%clk 0:02:55]} 6. Qc2 {[%clk 0:02:56]}  Bd6 {[%clk 0:02:51]} 7. b3 {[%clk 0:02:48]}  O-O {[%clk 0:02:50]} 8. Bd3 {[%clk 0:02:48]}  h6 {[%clk 0:02:49]} 9. O-O {[%clk 0:02:45]}  e5 {[%clk 0:02:48]} 10. cxd5 {[%clk 0:02:34]}  cxd5 {[%clk 0:02:46]} 11. Nb5 {[%clk 0:02:07]}  Bb8 {[%clk 0:02:38]} 12. Bf5 {[%clk 0:02:04]}  e4 {[%clk 0:02:26]} 13. Ba3 {[%clk 0:02:02]}  exf3 {[%clk 0:02:22]} 14. Bxf8 {[%clk 0:01:57]}  fxg2 {[%clk 0:02:19]} 15. Rfc1 {[%clk 0:01:56]}  Nxf8 {[%clk 0:02:15]} 16. Qxc8 {[%clk 0:01:54]}  Qb6 {[%clk 0:01:58]} 17. Nc7 {[%clk 0:01:38]}  Qd6 {[%clk 0:01:17]} 18. f4 {[%clk 0:01:25]}  Qe7 {[%clk 0:01:00]} 19. Rc3 {[%clk 0:00:37]}  Bxc7 {[%clk 0:00:52]} 20. Qxa8 {[%clk 0:00:33]}  Ba5 {[%clk 0:00:41]} 21. Rd3 {[%clk 0:00:31]}  g6 {[%clk 0:00:41]} 22. Bh3 {[%clk 0:00:29]}  Kg7 {[%clk 0:00:41]} 23. Bxg2 {[%clk 0:00:28]}  Bb6 {[%clk 0:00:34]} 24. Rc1 {[%clk 0:00:25]}  Ne4 {[%clk 0:00:32]} 25. Bxe4 {[%clk 0:00:21]}  Qxe4 {[%clk 0:00:30]} 26. Rcd1 {[%clk 0:00:18]}  Nd7 {[%clk 0:00:23]} 27. Qxb7 {[%clk 0:00:17]}  Nf6 {[%clk 0:00:23]} 28. Qc6 {[%clk 0:00:13]}  Qf3 {[%clk 0:00:22]} 29. Qc2 {[%clk 0:00:12]}  Ne4 {[%clk 0:00:22]} 30. Qg2 {[%clk 0:00:11]}  Qh5 {[%clk 0:00:22]} 31. Rf1 {[%clk 0:00:08]}  Qf5 {[%clk 0:00:22]} 32. Rdd1 {[%clk 0:00:07]}  Ba5 {[%clk 0:00:22]} 33. Rc1 {[%clk 0:00:06]}  Bc3 {[%clk 0:00:21]} 34. Rcd1 {[%clk 0:00:04]}  h5 {[%clk 0:00:21]} 35. Rf3 {[%clk 0:00:03]}  h4 {[%clk 0:00:21]} 36. Rh3 {[%clk 0:00:03]}  Qh5 {[%clk 0:00:20]} 37. Qf3 {[%clk 0:00:01]}  Qh8 {[%clk 0:00:17]} 0-1


[Site "https://www.chess.com"]